Cogmind - Beta 17.1 @@@ ROGUE MODE // 2026.08.30 @ 19:54:28 Player: Petvaria Result: Destroyed by V2-JKR(R) with Subdweller Laser Performance ------------- Evolutions (0) 0 Regions Visited (2) 400 Robots Destroyed (16) 80 Value Destroyed (532) 532 Prototype IDs (0) 0 Alien Tech Used (0) 0 Bonus (0) 0 TOTAL SCORE: 1012 Bonus ------- None Cogmind --------- Core Integrity 0/250 Matter 290/300 Energy 250/250 System Corruption 0% Temperature Cool (6) Movement Treading (160) Location -10/Subcaves Parts ------- > --- POWER (1) -------- Ion Engine > --- PROPULSION (2) --- Light Treads Light Treads > --- UTILITY (2) ------ Scrap Shield > --- WEAPON (2) ------- Subdweller Laser Hammer > --- INVENTORY (5) ---- Light Ion Engine Light Treads Medium Laser Beam Cannon Subdweller Machine Gun Peak State ------------ > --- POWER ------------ Ion Engine > --- PROPULSION ------- Light Treads Light Treads > --- UTILITY ---------- Scrap Shield > --- WEAPON ----------- Subdweller Laser Battle Rifle > --- INVENTORY -------- Light Ion Engine Light Treads Beam Cannon Light Assault Rifle Mining Laser [Rating: 11] Favorites ----------- Power Ion Engine Engine Ion Engine Propulsion Light Treads Treads Light Treads Utility Seismic Detector Device Seismic Detector Storage High-capacity Storage Unit Protection Scrap Shield Weapon Light Assault Rifle Energy Gun Medium Laser Energy Cannon Beam Cannon Ballistic Gun Light Assault Rifle Special Weapon Mining Laser Impact Weapon Hammer Build | -11 -10 -10 ------- Run | Yrd Mat Sub Slots Evolved . | . . . Power . | . . . Propulsion . | . . . Utility . | . . . Weapon . | . . . Parts Attached 20 | 7 3 10 Power 1 | 1 . . Engine 1 | 1 . . Core . | . . . Reactor . | . . . Propulsion 3 | 2 . 1 Treads 3 | 2 . 1 Leg . | . . . Wheel . | . . . Hover . | . . . Flight . | . . . Utility 5 | 2 2 1 Device 1 | 1 . . Storage 3 | 1 2 . Processor . | . . . Hackware . | . . . Protection 1 | . . 1 Artifact . | . . . Weapon 11 | 2 1 8 Energy Gun 3 | . 1 2 Energy Cannon 1 | . . 1 Ballistic Gun 5 | 2 . 3 Ballistic Cannon . | . . . Launcher . | . . . Special Weapon 1 | . . 1 Impact Weapon 1 | . . 1 Slashing Weapon . | . . . Piercing Weapon . | . . . Special Melee Weapon . | . . . Unidentified Prototypes . | . . . Parts Lost 3 | . 1 2 Power . | . . . Propulsion . | . . . Utility . | . . . Weapon 3 | . 1 2 Highest Loss Streak 2 | . 1 2 To Critical Strikes . | . . . Average Backups 10 | 3 12 7 Power 1 | . 1 1 Propulsion 4 | 2 5 2 Utility 1 | . 2 . Weapon 3 | . 3 3 Tool/Special . | . . . Unused Backups 12 | . . 12 Power 3 | . . 3 Propulsion 5 | . . 5 Utility 3 | . . 3 Weapon 1 | . . 1 Tool/Special . | . . . Average Slot Usage (%) 95 | . 99 88 Engine 14 | . 14 14 Treads 28 | . 28 28 Device 9 | . 14 3 Storage 9 | . 14 3 Protection 3 | . . 10 Energy Gun 4 | . 2 8 Energy Cannon 1 | . . 5 Ballistic Gun 21 | . 25 13 Peak Build Rating 11 | 7 9 11 Average Rating 8 | 5 7 9 On Entrance 5 | . 7 8 Avg Prop Armor Cover (%) . | . . . Naked Turns . | . . . Heaviest Build 50 | 14 49 50 Greatest Support 40 | 40 40 40 Greatest Overweight (x) 1 | . 1 1 Average Overweight (x) . | . . . Largest Inventory Capacity 20 | 8 20 20 Average Capacity 13 | 7 16 8 Most Carried 17 | 7 16 17 Average Carried 10 | 4 12 7 Final Capacity 20 | 8 20 5 Final Carried 15 | 6 15 5 Class Distribution -------------------- 96% | Mutant 3% | Subdweller-Mutant Dominant Class ---------------- Mutant | -10/Materials Mutant | -10/Subcaves Resources | -11 -10 -10 ----------- Run | Yrd Mat Sub Matter Collected 765 | 223 364 178 Remotely . | . . . Salvage Created 683 | 18 448 217 Parts 45 | 4 26 15 Haulers Intercepted 2 | . 2 . Recyclers Shooed 3 | . 3 . Parts Field Recycled . | . . . Retrieved Matter . | . . . Parts Self-Destructed . | . . . Prevented . | . . . Parts Restored . | . . . Kills | -11 -10 -10 ------- Run | Yrd Mat Sub Combat Hostiles Destroyed 13 | . 8 5 Guns 11 | . 7 4 Cannons 1 | . . 1 AOE 1 | . 1 . Classes Destroyed 4 | 1 2 1 Tunneler 1 | 1 . . Hauler 2 | . 2 . Grunt 8 | . 8 . Subdweller 5 | . . 5 Best Kill Streak 2 | 1 2 2 Combat Bots Only 2 | . 2 2 Max Kills in Single Turn 1 | 1 1 1 Gunslinging . | . . . Exploded 1 | . 1 . Melee . | . . . Uniques/NPCs Destroyed . | . . . Combat | -11 -10 -10 -------- Run | Yrd Mat Sub Hostile Shots Fired 82 | . 35 47 Missed 17 | . 9 8 Hits 65 | . 26 39 Projectile 65 | . 26 39 AOE 4 | . . 4 Damage Taken 1350 | . 385 965 Core 256 | . 121 135 Absorbed by Shields . | . . . Core Remaining (%) 100 | 100 . . Volleys Fired 72 | 8 36 28 Largest 2 | 2 2 2 Hottest 85 | 40 70 85 Shots Fired 140 | 16 72 52 Gun 127 | 16 72 39 Cannon 13 | . . 13 Launcher . | . . . Special . | . . . Kinetic 106 | 16 66 24 Thermal 34 | . 6 28 Explosive . | . . . Electromagnetic . | . . . Robot Hit Streak 22 | 5 11 22 Robot Miss Streak 2 | 2 1 1 Penetration Max . | . . . Secondary Targets . | . . . Shots Hit Robots 106 | 11 51 44 Core Hits 36 | 3 23 10 Critical Kills . | . . . Critical Parts Destroyed 1 | . 1 . Critical Strikes 2 | . 1 1 Destroy 2 | . 1 1 Melee Attacks 3 | . . 3 Impact 3 | . . 3 Slashing . | . . . Piercing . | . . . Sneak Attacks . | . . . Combat Hostiles . | . . . Follow-up Attacks . | . . . Damage Inflicted 1522 | 113 691 718 Guns 1215 | 107 554 554 Cannons 141 | . . 141 Explosions 100 | . 100 . Melee 23 | . . 23 Ramming 43 | 6 37 . Kinetic 863 | 107 477 279 Thermal 493 | . 77 416 Explosive 100 | . 100 . Electromagnetic . | . . . Impact 23 | . . 23 Slashing . | . . . Piercing . | . . . Highest Corruption . | . . . Average Corruption . | . . . Corruption Purged . | . . . Corruption Blocked . | . . . Overload Shots . | . . . Overflow Damage . | . . . Projectiles . | . . . Explosions . | . . . Melee . | . . . Knockbacks . | . . . Impact . | . . . Kinetic . | . . . Secondary . | . . . Self-Inflicted Damage 56 | . 56 . Shots 1 | . 1 . Rammed 12 | 1 11 . Targets Rammed 12 | 1 11 . Kicked . | . . . Crushed . | . . . Highest Temperature 136 | . 136 10 Average Temperature 21 | . 36 4 Received Heat Transfer 330 | . 189 141 Siege Activations . | . . . Martial Activations . | . . . Shielding Activations . | . . . Robots Disrupted . | . . . Combat Hostiles . | . . . Robots Corrupted . | . . . Combat Hostiles . | . . . Parts Fried . | . . . Impact Corruptions . | . . . Robots Melted . | . . . Combat Hostiles . | . . . Parts Melted 1 | . . 1 Heat Transferred 941 | . 222 719 Parts Sabotaged . | . . . Parts Stolen . | . . . Parts Stripped . | . . . Power Chain Reactions . | . . . Alert | -11 -10 -10 ------- Run | Yrd Mat Sub Maximum Alert Level . | . . . Low Security (%) 100 | 100 100 . Level 1 . | . . . Level 2 . | . . . Level 3 . | . . . Level 4 . | . . . Level 5 . | . . . High Security . | . . . Max Security . | . . . Peak Influence 102 | 5 102 . Initial . | . . . Average 13 | . 14 . Influence Increases 281 | 5 276 . Destroy 0b10 Robot/C 160 | . 160 . Destroy 0b10 Robot/NC 15 | 5 10 . Destroy Leader 54 | . 54 . Successful Hack 21 | . 21 . Disable Machine 15 | . 15 . Destroy Structure 16 | . 16 . Influence Decreases 281 | 5 276 . Time Decay 271 | 5 266 . Lost Part 10 | . 10 . Squads Dispatched 3 | . 3 . Investigation 2 | . 2 . Extermination . | . . . Reinforcement 1 | . 1 . Assault . | . . . Garrison . | . . . Intercept . | . . . Searches Triggered . | . . . Construction Impeded . | . . . Haulers Reinforced . | . . . Active Scanning Responses . | . . . Cargo Convoy Interrupts . | . . . Stealth | -11 -10 -10 --------- Run | Yrd Mat Sub Distress Signals . | . . . Communications Jammed . | . . . Distress Signals . | . . . Times Spotted 35 | . 24 11 Peak Tracking Total 5 | . 5 4 Tactical Retreats . | . . . Traps | -11 -10 -10 ------- Run | Yrd Mat Sub Traps Triggered 2 | . 2 . Indirectly . | . . . Trap Hack Attempts . | . . . Triggered . | . . . Disarmed . | . . . Reprogrammed . | . . . Reused . | . . . Traps Extracted . | . . . Installed . | . . . Triggered . | . . . Machines | -11 -10 -10 ---------- Run | Yrd Mat Sub Machines Disabled 1 | . 1 . Max in Single Turn 1 | . 1 . Machines Repaired . | . . . Machines Dismantled . | . . . Machines Sabotaged . | . . . Overloaded Fab Kills . | . . . Hacking | -11 -10 -10 --------- Run | Yrd Mat Sub Machines Accessed 6 | . 6 . Terminals 6 | . 6 . Fabricators . | . . . Repair Stations . | . . . Recycling Units . | . . . Scanalyzers . | . . . Garrison Access . | . . . Total Hacks 14 | . 14 . Successful 8 | . 8 . Failed 5 | . 5 . Catastrophic 1 | . 1 . Database Lockouts 1 | . 1 . Manual 15 | . 15 . Terminals 14 | . 14 . Fabricators . | . . . Repair Stations . | . . . Recycling Units . | . . . Scanalyzers . | . . . Garrison Access . | . . . Terminal Hacks 1 | . 1 . Part Schematic 1 | . 1 . Fabricator Hacks . | . . . Repair Station Hacks . | . . . Recycling Unit Hacks . | . . . Scanalyzer . | . . . Garrison Access Hacks . | . . . Unauthorized Hacks 7 | . 7 . Terminals 7 | . 7 . Botnet 2 | . 2 . Skim 5 | . 5 . Fabricators . | . . . Repair Stations . | . . . Recycling Units . | . . . Scanalyzers . | . . . Garrison Access . | . . . Data Cores Recovered . | . . . Used . | . . . Hacking Detections 4 | . 4 . Full Trace Events . | . . . Feedback Events . | . . . Feedback Blocked . | . . . Robot Schematics Acquired . | . . . Robots Built . | . . . Authchips . | . . . Time . | . . . Total Robot Build Rating . | . . . Part Schematics Acquired 1 | . 1 . Parts Built . | . . . Authchips . | . . . Time . | . . . Total Part Build Rating . | . . . Part Studies Acquired . | . . . Parts Repaired . | . . . Time . | . . . Parts Recycled . | . . . Recycled Matter . | . . . Retrieved Matter . | . . . Retrieved Components . | . . . Parts Scanalyzed . | . . . Part Schematics Acquired . | . . . Parts Damaged . | . . . Bothacking | -11 -10 -10 ------------ Run | Yrd Mat Sub Used RIF Installer . | . . . Robots Hacked . | . . . Non-combat . | . . . Combat . | . . . Robot Hacks Applied . | . . . Relay Couplers Released . | . . . Fabnet Peak Effective % . | . . . Robots Rewired . | . . . Allies Hacked . | . . . Hacks Repelled . | . . . Allies | -11 -10 -10 -------- Run | Yrd Mat Sub Total Allies . | . . . Largest Group . | . . . Highest-Rated Group . | . . . Highest-Rated Ally . | . . . Total Orders . | . . . Ally Attacks . | . . . Total Damage . | . . . Kills . | . . . Allies Corrupted . | . . . Allies Melted . | . . . Intel | -11 -10 -10 ------- Run | Yrd Mat Sub Active Infowar (turns) 1708 | 14 1513 181 Seismic 1708 | 14 1513 181 Robot Analysis Total . | . . . Derelict Logs Recovered . | . . . Drone Launches . | . . . Drone Recoveries . | . . . Exploration | -11 -10 -10 ------------- Run | Yrd Mat Sub Turns Passed 2515 | 127 1513 875 Spaces Moved 1212 | 63 725 424 Core 15 | 15 . . Treads 1197 | 48 725 424 Legs . | . . . Wheels . | . . . Hover . | . . . Flight . | . . . Fastest Speed 50 | 50 160 160 Average Speed 178 | 133 186 172 Slowest Speed 240 | 160 240 240 Overloaded Moves . | . . . Propulsion Burnouts . | . . . Robots Hopped . | . . . Potential Cave-ins . | . . . Cave-ins Triggered . | . . . Exploration Rate (%) 39 | 3 96 19 Regions Visited 2 Branch Regions 1 Pre-discovered Areas 2 | . 2 . Known Exits Taken 1 | . 1 . Unknown Exits Taken 1 | 1 . . Scrap Searched 1 | . . 1 Spaces Dug 1 | . . 1 Terrain Destroyed 25 | . 24 1 Melee 1 | . . 1 Projectile . | . . . AOE 24 | . 24 . Terrain Rammed . | . . . Walls Destroyed . | . . . Machines Disabled . | . . . Actions | -11 -10 -10 --------- Run | Yrd Mat Sub Total 1416 | 91 810 515 Wait 41 | . 23 18 Move 1210 | 62 724 424 Hop . | . . . Pick Up 33 | 13 11 9 Fast Attach 2 | . . 2 Attach 10 | 7 1 2 Detach . | . . . Swap 11 | . 2 9 Drop 12 | . 2 10 Fire 72 | 8 36 28 Melee 3 | . . 3 Ram . | . . . Kick . | . . . Crush 12 | 1 11 . Escape Stasis . | . . . Rewire . | . . . Trap . | . . . Miscellaneous 10 | . . 10 Route ------- -11/Scrapyard -10/Materials (discovered 6 exits: [*Mat x3] / *Min x2 / *Sub) -10/Subcaves (discovered 1 exit: [*Mat]) History --------- Turn | Location | Event 5 | -11/Scrapyard | Discovered new exit (range 15) 128 | -11/Scrapyard | Entered Materials 233 | -10/Materials | Central database locked down 314 | -10/Materials | Build established: Mutant 344 | -10/Materials | Discovered new exit (range 16) 562 | -10/Materials | Discovered new exit (range 16) 714 | -10/Materials | Discovered new exit (range 8) 922 | -10/Materials | Discovered new exit (range 14) 1279 | -10/Materials | Identified exit to Mines 1329 | -10/Materials | Learned location of Storage (-9) 1368 | -10/Materials | Learned 4 Recycling zone layouts 1397 | -10/Materials | Learned Storage trap positions 1415 | -10/Materials | Learned Materials emergency access door positions 1421 | -10/Materials | Learned 2 Materials zone layouts 1439 | -10/Materials | Learned Storage security intel 1469 | -10/Materials | Learned 4 Recycling zone layouts 1510 | -10/Materials | Identified exit to Subcaves 1641 | -10/Materials | Entered Subcaves 1651 | -10/Subcaves | Shifting Twisted Machinery released Sub. Power Source 1657 | -10/Subcaves | Shifting Twisted Machinery released Battle Rifle 1679 | -10/Subcaves | Discovered new exit (range 11) 1763 | -10/Subcaves | Core integrity fell below 50% 2223 | -10/Subcaves | Disturbed a concealed Subdweller 2501 | -10/Subcaves | A Subdweller sparked back to life 2501 | -10/Subcaves | A Subdweller sparked back to life 2501 | -10/Subcaves | A Subdweller sparked back to life 2504 | -10/Subcaves | Core integrity fell below 20% 2516 | -10/Subcaves | Destroyed by V2-JKR(R) with Subdweller Laser Last Messages --------------- Destroyed Sub. Monowheel. Destroyed Scrap Shield. NU-GEY(R) destroyed. Acquired 27 matter. Scrap Shield Fragment affixed to Scrap Shield (+47). Dropped Battle Rifle. Acquired 10 matter. Subatomizers dissect the Disposable Heat Sink. Scrap Shield Fragment affixed to Scrap Shield (+24). Scrap Shield Fragment affixed to Scrap Shield (+32). OC-LS3(R) creaks and sparks as it begins to move. V2-JKR(R) creaks and sparks as it begins to move. IP-O05(R) creaks and sparks as it begins to move. Map ----- +----------------------------------------------------+ | ?????????????????????????????????????????????????? | | ?????????????????????????????????????????????????? | | ?????????????????????????????????????????????????? | | ?????????????????????????????????????????????????? | | ?????????????????????????????????????????????????? | | ?????????????????????????? ??????????????????? | | ???????????????????????? ????????????????? | | ?????????????????????# ????????????????? | | ????????????????????## ????????????????? | | ???????????????????## ????????????????? | | ???##??????????????# ?????????????????? | | ??? #??????????????? ?????????????????? | | ?? #???????????????? #?????????????????? | | ?? #????????????????? ####??????????????? | | ? #?????????????????# #??????????????? | | ? #?????????????????# ##?????????????? | | #????????????????## ##????????????? | | #???????????????## #????????????? | | #??????????????# ? #????????????? | | ? #??????????????? ??# #????????????? | | #??????????????? ??## #????????????? | | # #???????????????# #?## ##????????????? | | #???????????????# #?# # ##?????????????? | | #???????????????# ### R # ##??????????????? | | ! #???????????????# #;#R ## #??????????????? | | ##?????????????## ###@< # ##??????????????? | | #??????######## #### <# #??????????????? | | "" #??????#"*[ "## ?# R <# ##??????????????? | | "" ##??????# ## %### ### <# ##??????????????? | | "###???????#% ##### " ####????????#### | | ##???####### "##### #"" # ###??????# " | | ##### # ### ## ### ### ### #??????# " | | " "* ## #####??# " | | % ## ## #### | | " ### # ! ## | | """" ##?########## ######## | | #""""#???????????### ## ## #??????# # # " # | | #" """????????????######## #??????#######" ## | | ##" "??????????????????# #????????????#"###? | | ?## ## ?????????????????## #????????????###??? | | ??####????????????????????#### #?????????????????? | | ?????????????????????????????###?????????????????? | | ?????????????????????????????????????????????????? | | ?????????????????????????????????????????????????? | | ?????????????????????????????????????????????????? | | ?????????????????????????????????????????????????? | | ?????????????????????????????????????????????????? | | ?????????????????????????????????????????????????? | | ?????????????????????????????????????????????????? | | ?????????????????????????????????????????????????? | +----------------------------------------------------+ Best States ------------- Heat Dissipation 25 Energy Generation 10 Energy Capacity 250 Matter Stores 300 Matter Capacity 300 Sight Range 16 Terrain Scan Density 10 Armor Coverage 800 Evasion (%) 50 Recoil Reduction 2 Item Schematics ----------------- Huge Storage Unit | -10/Materials | Hacked Robot Schematics ------------------ None Fabricated ------------ Nothing Repaired ---------- Nothing Studied --------- None Alien Tech Used ----------------- None Achievements -------------- None Challenges ------------ None Game ------ Seed HelicalGreaterShooter Manual? 0 Play Time 00:11:16 Cumulative 592.9 hours Start 2026.08.30 @ 19:43:30 End 2026.08.30 @ 19:54:28 Sessions 1 Manual Loads 0 Difficulty Rogue Special Mode None Game No. 332 Rogue 332 Adventurer 0 Explorer 0 Win Type - Total 40 Types 20/2/8/2/1/1/1/2/1/2 Lore% 97 Gallery% 93 Achievement% 88 Wizard Run 0 Options --------- Layout 1 ASCII 0 Keyboard 0 Movement Numpad Keybinds 0 Fullscreen 1 Font 24/Proggy Map View 50x35 Zoom Use 0% Tactical HUD 0 Map Filters NONE Filters NONE Steam 1 RUN: a6af7c51-0299-407d-8145-77fc3c482e54